Workbook

Sheet RNAinVAL_CPB_june20...
B2: Experiment name: | C2: RNAinVAL_CPB_june2017_exp
C5: Target gene name | I5: qPCR Eff. NOT OK in this amplicon!!!
B6: Sample name | C6: LdAlas | E6: vATPaseE | G6: JHBP_qPCR_TqMn | I6: Ld_JHBP-like
B7: H2O_IND_1 | C7: 1.201207 | E7: 0.659906 | G7: 953.532192 | I7: 1.025762
B8: H2O_IND_2 | C8: 1.554616 | E8: 0.666334 | G8: 535.96546 | I8: 0.71062
B9: H2O_IND_3 | C9: 1.748103 | E9: 0.568384 | G9: 274.250393 | I9: 1.282775
B10: vATPaseE_IND_1 | C10: 0.185286 | E10: 0.024004 | G10: 8.587952 | I10: 0.353077
B11: vATPaseE_IND_2 | C11: 0.260526 | E11: 0.03344 | G11: 172.078567 | I11: QC target failed
B12: vATPaseE_IND_3 | C12: 0.50473 | E12: 0.033589 | G12: 196.58066 | I12: 1.068027
B13: egfp_IND_1 | C13: 4.160065 | E13: 1.440069 | G13: 12.227879 | I13: 7.920753
B14: egfp_IND_2 | C14: 5.205426 | E14: 0.880062 | G14: 103.651444 | I14: 11.181167
B15: egfp_IND_3 | C15: 4.736989 | E15: 1.34202 | G15: 1691.551578 | I15: 3.888836
B16: alas_IND_1 | C16: 0.551789 | E16: 2.091482 | G16: 1182.667901 | I16: QC target failed
B17: alas_IND_2 | C17: 1.378784 | E17: 1.475524 | G17: 1.562354 | I17: 0.115941
B18: alas_IND_3 | C18: 2.538631 | E18: 1.58779 | G18: 10.026384 | I18: QC target failed
B19: JHBP_IND_1 | C19: 1.621588 | E19: 2.32322 | G19: 8.034301 | I19: 0.091044
B20: JHBP_IND_2 | C20: 4.414046 | E20: 1.447139 | G20: 2118.151818 | I20: 4.710092
B21: JHBP_IND_3 | C21: 2.344037 | E21: 1.019178 | G21: 6.658811 | I21: QC target failed
B22: egfp_NI_1 | C22: 2.761626 | E22: 0.972246 | G22: 1553.666614 | I22: 2.272361
B23: egfp_NI_2 | C23: 0.260712 | E23: 1.430705 | G23: 905.532797 | I23: 3.504721 | L23: Primerjava | M23: % utišanja | N23: t-test p
B24: egfp_NI_3 | C24: 0.381583 | E24: 1.34955 | G24: 2601.867648 | I24: 3.404708 | L24: vATPase IND / voda IND | M24: =E32 -> 0.951951944 | N24: =F32 -> 4.605551189e-05 | O24: *
B25: alas_NI_1 | C25: 0.423367 | E25: 2.521829 | G25: QC target failed | I25: QC target failed | L25: vATPase IND / EGFP IND | M25: =E33 -> 0.9751422047 | N25: =F33 -> 0.002322236708 | O25: *
B26: alas_NI_2 | C26: 1.658701 | E26: 1.794189 | G26: 4.842654 | I26: 0.273908 | L26: ALAS IND / voda IND | M26: =C32 -> 0.007709274087 | N26: 0.9854866726
B27: alas_NI_3 | C27: 5.457572 | E27: 2.849331 | G27: 7.538008 | I27: QC target failed | L27: ALAS IND / EGFP IND | M27: 0.6830909173 | N27: 0.007846396785 | O27: *
B28: JHBP_NI_1 | C28: 3.482647 | E28: 1.307481 | G28: 6.694635 | I28: QC target failed | L28: ALAS NI / EGFP IND | M28: 0.4653677935 | N28: 0.2296400188
B29: JHBP_NI_2 | C29: 0.559332 | E29: 1.530767 | G29: 2765.991112 | I29: QC target failed | L29: JHBP IND / voda IND | M29: =G32 -> -0.2092684871 | N29: 0.8744885793
B30: JHBP_NI_3 | C30: 0.48191 | E30: 1.718795 | G30: 1958.271121 | I30: QC target failed | L30: JHPB IND / EGFP IND | M30: -0.1800423069 | N30: 0.9088832292
D31: ttest | F31: ttest | H31: ttest | L31: JHPB NI / EGFP IND | M31: -1.617503588 | N31: 0.3780138672
B32: KNOCKDOWN EFF IND (compared to H2O_IND): | C32: =1-AVERAGE(C16:C18)/AVERAGE(C7:C9) -> 0.007709274087 | D32: =_xlfn.T.TEST(C16:C18,C7:C9,2,2) -> 0.9854866726 | E32: =1-AVERAGE(E10:E12)/AVERAGE(E7:E9) -> 0.951951944 | F32: =_xlfn.T.TEST(E10:E12,E7:E9,2,2) -> 4.605551189e-05 | G32: =1-AVERAGE(G19:G21)/AVERAGE(G7:G9) -> -0.2092684871 | H32: =_xlfn.T.TEST(G19:G21,G7:G9,2,2) -> 0.8744885793
B33: KNOCKDOWN EFF IND (compared to dsegfp_IND): | C33: =1-AVERAGE(C16:C18)/AVERAGE(C13:C15) -> 0.6830909173 | D33: =_xlfn.T.TEST(C16:C18,C13:C15,2,2) -> 0.007846396785 | E33: =1-AVERAGE(E10:E12)/AVERAGE(E13:E15) -> 0.9751422047 | F33: =_xlfn.T.TEST(E10:E12,E13:E15,2,2) -> 0.002322236708 | G33: =1-AVERAGE(G19:G21)/AVERAGE(G13:G15) -> -0.1800423069 | H33: =_xlfn.T.TEST(G19:G21,G13:G15,2,2) -> 0.9088832292 | L33: * značilna razlika
B34: KNOCKDOWN EFF NI (compared to dsegfp_IND): | C34: =1-AVERAGE(C25:C27)/AVERAGE(C13:C15) -> 0.4653677935 | D34: =_xlfn.T.TEST(C25:C27,C13:C15,2,2) -> 0.2296400188 | G34: =1-AVERAGE(G28:G30)/AVERAGE(G13:G15) -> -1.617503588 | H34: =_xlfn.T.TEST(G28:G30,G13:G15,2,2) -> 0.3780138672
B35: KNOCKDOWN EFF IND&NI (compared to dsegfp_IND): | C35: =1-AVERAGE(C16:C18,C25:C27)/AVERAGE(C13:C15) -> 0.5742293554 | G35: =1-AVERAGE(G19:G21,G28:G30)/AVERAGE(G13:G15) -> -0.8987729473
C36: dsRNA non-specific effects?? | E36: PERFECT SILENCING | G36: STRANGE OUTLAYERS! VERY HIGH VARIABILITY IN EXPR?
G37: FOR SURE NO SILENCING NI group!!!

Sheet RNAinVAL_CPB_june20_finalQCExtC
B2: Experiment name: | C2: RNAinVAL_CPB_june2017_exp
Q3: average expression values | V3: SE
Q4: JHBP-like | R4: ALAS | S4: vATPaseE | V4: JHBP-like | W4: ALAS | X4: vATPaseE
C5: Target gene name | I5: qPCR Eff. NOT OK in this amplicon!!! | P5: water_IND | Q5: =AVERAGE(G7:G9) -> 608.4465947 | R5: =AVERAGE(C7:C9) -> 1.553889667 | S5: =AVERAGE(E7:E9) -> 0.6537586667 | V5: =_xlfn.STDEV.S(G7:G9)/SQRT(COUNT(G7:G9)) -> 204.0934545 | W5: =_xlfn.STDEV.S(C7:C9)/SQRT(COUNT(C7:C9)) -> 0.1656235271 | X5: =_xlfn.STDEV.S(E7:E9)/SQRT(COUNT(E7:E9)) -> 0.03400987173
B6: Sample name | C6: LdAlas | E6: vATPaseE | G6: JHBP_qPCR_TqMn | I6: Ld_JHBP-like | P6: egfp_IND | Q6: =AVERAGE(G13:G15) -> 620.8316607 | R6: =AVERAGE(C13:C15) -> 4.857823333 | S6: =AVERAGE(E13:E15) -> 1.262124667 | V6: =_xlfn.STDEV.S(G13:G15)/SQRT(COUNT(G13:G15)) -> 561.6434131 | W6: =_xlfn.STDEV.S(C13:C15)/SQRT(COUNT(C13:C15)) -> 0.3044500731 | X6: =_xlfn.STDEV.S(E13:E15)/SQRT(COUNT(E13:E15)) -> 0.1797799213
B7: H2O_IND_1 | C7: 1.240119 | E7: 0.681291 | G7: 984.416324 | I7: 1.025762 | P7: target_gene_IND | Q7: =AVERAGE(G19:G21) -> 734.957204 | R7: =AVERAGE(C16:C18) -> 1.554961 | S7: =AVERAGE(E10:E12) -> 0.03041466667 | V7: =_xlfn.STDEV.S(G19:G21)/SQRT(COUNT(G19:G21)) -> 727.3363505 | W7: =_xlfn.STDEV.S(C16:C18)/SQRT(COUNT(C16:C18)) -> 0.5803644505 | X7: =_xlfn.STDEV.S(E10:E12)/SQRT(COUNT(E10:E12)) -> 0.002962226321
B8: H2O_IND_2 | C8: 1.618827 | E8: 0.693858 | G8: 558.111599 | I8: 0.71062
B9: H2O_IND_3 | C9: 1.802723 | E9: 0.586127 | G9: 282.811861 | I9: 1.282775 | Q9: average expression values scaled to water | V9: SE
B10: vATPaseE_IND_1 | C10: 0.190918 | E10: 0.024728 | G10: 8.848812 | I10: 0.353077 | Q10: JHBP-like | R10: ALAS | S10: vATPaseE | V10: JHBP-like | W10: ALAS | X10: vATPaseE
B11: vATPaseE_IND_2 | C11: 0.269352 | E11: 0.031819 | G11: 177.908337 | I11: QC target failed | P11: water_IND | Q11: =Q5/Q$5 -> 1 | R11: =R5/R$5 -> 1 | S11: 1 | V11: =V5/Q$5 -> 0.3354336375 | W11: =W5/R$5 -> 0.1065864138 | X11: 0.05202205869
B12: vATPaseE_IND_3 | C12: 0.521029 | E12: 0.034697 | G12: 202.939659 | I12: 1.068027 | P12: egfp_IND | Q12: =Q6/Q$5 -> 1.020355223 | R12: 3.126234402 | S12: 1.930566631 | V12: =V6/Q$5 -> 0.9230775848 | W12: 0.1959277287 | X12: 0.274994322
B13: egfp_IND_1 | C13: 4.319518 | E13: 1.495239 | G13: 12.695657 | I13: 7.920753 | P13: target_gene_IND | Q13: 1.207923934 | R13: 1.000689453 | S13: 0.04652277395 | V13: 1.195398835 | W13: 0.3734914151 | X13: 0.00453107006
B14: egfp_IND_2 | C14: 5.373431 | E14: 0.90849 | G14: 107.001184 | I14: 11.181167
B15: egfp_IND_3 | C15: 4.880521 | E15: 1.382645 | G15: 1742.798141 | I15: 3.888836
B16: alas_IND_1 | C16: 0.621646 | E16: 2.36874 | G16: 1331.886833 | I16: QC target failed
B17: alas_IND_2 | C17: 1.423989 | E17: 1.523826 | G17: 1.613593 | I17: 0.115941
B18: alas_IND_3 | C18: 2.619248 | E18: 1.638216 | G18: 10.344906 | I18: QC target failed
B19: JHBP_IND_1 | C19: 1.681188 | E19: 2.408531 | G19: 8.32949 | I19: 0.091044
B20: JHBP_IND_2 | C20: 4.563182 | E20: 1.495979 | G20: 2189.629675 | I20: 4.710092
B21: JHBP_IND_3 | C21: 2.433204 | E21: 1.057976 | G21: 6.912447 | I21: QC target failed
B22: egfp_NI_1 | C22: 2.857617 | E22: 1.006066 | G22: 1607.604436 | I22: 2.272361
B23: egfp_NI_2 | C23: 0.270136 | E23: 1.482416 | G23: 938.297202 | I23: 3.504721 | L23: Primerjava | M23: % utišanja | N23: t-test p
B24: egfp_NI_3 | C24: 0.395104 | E24: 1.397355 | G24: 2694.068225 | I24: 3.404708 | L24: vATPase IND / voda IND | M24: =E32 -> 0.9534772261 | N24: =F32 -> 5.291635055e-05 | O24: **
B25: alas_NI_1 | C25: 0.439705 | E25: 2.619112 | G25: QC target failed | I25: QC target failed | L25: vATPase IND / EGFP IND | M25: =E33 -> 0.9759020107 | N25: =F33 -> 0.002376878625 | O25: **
B26: alas_NI_2 | C26: 1.72093 | E26: 1.861549 | G26: 5.024731 | I26: 0.273908 | L26: ALAS IND / voda IND | M26: =C32 -> -0.0006894526402 | N26: 0.9986686771
B27: alas_NI_3 | C27: 5.680353 | E27: 2.965615 | G27: 7.836511 | I27: QC target failed | L27: ALAS IND / EGFP IND | M27: 0.6799058152 | N27: 0.007283738451 | O27: **
B28: JHBP_NI_1 | C28: 4.874077 | E28: 1.844478 | G28: 9.123553 | I28: QC target failed | L28: ALAS NI / EGFP NI | M28: -1.225746887 | N28: 0.4659799664
B29: JHBP_NI_2 | C29: 0.5793 | E29: 1.585426 | G29: 2864.78365 | I29: QC target failed | L29: JHBP IND / voda IND | M29: =G32 -> -0.2079239336 | N29: 0.875127014
B30: JHBP_NI_3 | C30: QC target failed | E30: 1.781157 | G30: 2029.422124 | I30: QC target failed | L30: JHPB IND / EGFP IND | M30: -0.1838268738 | N30: 0.9071542353
D31: ttest | F31: ttest | H31: ttest | L31: JHPB NI / EGFP NI | M31: 0.06424474659 | N31: 0.9152249883
B32: KNOCKDOWN EFF IND (compared to H2O_IND): | C32: =1-AVERAGE(C16:C18)/AVERAGE(C7:C9) -> -0.0006894526402 | D32: =_xlfn.T.TEST(C16:C18,C7:C9,2,2) -> 0.9986686771 | E32: =1-AVERAGE(E10:E12)/AVERAGE(E7:E9) -> 0.9534772261 | F32: =_xlfn.T.TEST(E10:E12,E7:E9,2,2) -> 5.291635055e-05 | G32: =1-AVERAGE(G19:G21)/AVERAGE(G7:G9) -> -0.2079239336 | H32: =_xlfn.T.TEST(G19:G21,G7:G9,2,2) -> 0.875127014
B33: KNOCKDOWN EFF IND (compared to dsegfp_IND): | C33: =1-AVERAGE(C16:C18)/AVERAGE(C13:C15) -> 0.6799058152 | D33: =_xlfn.T.TEST(C16:C18,C13:C15,2,2) -> 0.007283738451 | E33: =1-AVERAGE(E10:E12)/AVERAGE(E13:E15) -> 0.9759020107 | F33: =_xlfn.T.TEST(E10:E12,E13:E15,2,2) -> 0.002376878625 | G33: =1-AVERAGE(G19:G21)/AVERAGE(G13:G15) -> -0.1838268738 | H33: =_xlfn.T.TEST(G19:G21,G13:G15,2,2) -> 0.9071542353 | L33: * značilna razlika
B34: KNOCKDOWN EFF NI (compared to dsegfp_NI): | C34: =1-AVERAGE(C25:C27)/AVERAGE(C22:C24) -> -1.225746887 | D34: =_xlfn.T.TEST(C25:C27,C22:C24,2,2) -> 0.4659799664 | G34: =1-AVERAGE(G28:G30)/AVERAGE(G22:G24) -> 0.06424474659 | H34: =_xlfn.T.TEST(G28:G30,G22:G24,2,2) -> 0.9152249883
B35: KNOCKDOWN EFF IND&NI (compared to dsegfp_IND): | C35: =1-AVERAGE(C16:C18,C25:C27)/AVERAGE(C13:C15) -> 0.5709370864 | G35: =1-AVERAGE(G19:G21,G28:G30)/AVERAGE(G13:G15) -> -0.9082470041
C36: dsRNA non-specific effects?? | E36: PERFECT SILENCING | G36: STRANGE OUTLAYERS! VERY HIGH VARIABILITY IN EXPR?
G37: FOR SURE NO SILENCING NI group!!!

Sheet RNAinVAL_CPB_june20_finalQC (2
B2: Experiment name: | C2: RNAinVAL_CPB_june2017_exp
C5: Target gene name | I5: qPCR Eff. NOT OK in this amplicon!!!
B6: Sample name | C6: LdAlas | E6: vATPaseE | G6: JHBP_qPCR_TqMn | I6: Ld_JHBP-like
B7: H2O_IND_1 | C7: 1.240119 | E7: 0.681291 | G7: 984.416324 | I7: 1.025762
B8: H2O_IND_2 | C8: 1.618827 | E8: 0.693858 | G8: 558.111599 | I8: 0.71062
B9: H2O_IND_3 | C9: 1.802723 | E9: 0.586127 | G9: 282.811861 | I9: 1.282775
B10: egfp_IND_1 | C10: 4.319518 | E10: 1.495239 | G10: 12.695657 | I10: 7.920753
B11: egfp_IND_2 | C11: 5.373431 | E11: 0.90849 | G11: 107.001184 | I11: 11.181167
B12: egfp_IND_3 | C12: 4.880521 | E12: 1.382645 | G12: 1742.798141 | I12: 3.888836
B13: vATPaseE_IND_1 | C13: 0.190918 | E13: 0.024728 | G13: 8.848812 | I13: 0.353077
B14: vATPaseE_IND_2 | C14: 0.269352 | E14: 0.031819 | G14: 177.908337 | I14: QC target failed
B15: vATPaseE_IND_3 | C15: 0.521029 | E15: 0.034697 | G15: 202.939659 | I15: 1.068027
B16: alas_IND_1 | C16: 0.621646 | E16: 2.36874 | G16: 1331.886833 | I16: QC target failed
B17: alas_IND_2 | C17: 1.423989 | E17: 1.523826 | G17: 1.613593 | I17: 0.115941
B18: alas_IND_3 | C18: 2.619248 | E18: 1.638216 | G18: 10.344906 | I18: QC target failed
B19: JHBP_IND_1 | C19: 1.681188 | E19: 2.408531 | G19: 8.32949 | I19: 0.091044
B20: JHBP_IND_2 | C20: 4.563182 | E20: 1.495979 | G20: 2189.629675 | I20: 4.710092
B21: JHBP_IND_3 | C21: 2.433204 | E21: 1.057976 | G21: 6.912447 | I21: QC target failed
B22: egfp_NI_1 | C22: 2.857617 | E22: 1.006066 | G22: 1607.604436 | I22: 2.272361
B23: egfp_NI_2 | C23: 0.270136 | E23: 1.482416 | G23: 938.297202 | I23: 3.504721 | L23: Primerjava | M23: % utišanja | N23: t-test p
B24: egfp_NI_3 | C24: 0.395104 | E24: 1.397355 | G24: 2694.068225 | I24: 3.404708 | L24: vATPase IND / voda IND | M24: =E32 -> 0.9534772261 | N24: =F32 -> 5.291635055e-05 | O24: *
B25: alas_NI_1 | C25: 0.439705 | E25: 2.619112 | G25: QC target failed | I25: QC target failed | L25: vATPase IND / EGFP IND | M25: =E33 -> 0.9759020107 | N25: =F33 -> 0.002376878625 | O25: *
B26: alas_NI_2 | C26: 1.72093 | E26: 1.861549 | G26: 5.024731 | I26: 0.273908 | L26: ALAS IND / voda IND | M26: =C32 -> -0.0006894526402 | N26: 0.9986686771
B27: alas_NI_3 | C27: 5.680353 | E27: 2.965615 | G27: 7.836511 | I27: QC target failed | L27: ALAS IND / EGFP IND | M27: 0.6799058152 | N27: 0.007283738451 | O27: *
B28: JHBP_NI_1 | C28: 4.874077 | E28: 1.844478 | G28: 9.123553 | I28: QC target failed | L28: ALAS NI / EGFP NI | M28: -1.225746887 | N28: 0.4659799664
B29: JHBP_NI_2 | C29: 0.5793 | E29: 1.585426 | G29: 2864.78365 | I29: QC target failed | L29: JHBP IND / voda IND | M29: =G32 -> -0.2079239336 | N29: 0.875127014
B30: JHBP_NI_3 | C30: QC target failed | E30: 1.781157 | G30: 2029.422124 | I30: QC target failed | L30: JHPB IND / EGFP IND | M30: -0.1838268738 | N30: 0.9071542353
D31: ttest | F31: ttest | H31: ttest | L31: JHPB NI / EGFP NI | M31: 0.06424474659 | N31: 0.9152249883
B32: KNOCKDOWN EFF IND (compared to H2O_IND): | C32: =1-AVERAGE(C16:C18)/AVERAGE(C7:C9) -> -0.0006894526402 | D32: =_xlfn.T.TEST(C16:C18,C7:C9,2,2) -> 0.9986686771 | E32: =1-AVERAGE(E13:E15)/AVERAGE(E7:E9) -> 0.9534772261 | F32: =_xlfn.T.TEST(E13:E15,E7:E9,2,2) -> 5.291635055e-05 | G32: =1-AVERAGE(G19:G21)/AVERAGE(G7:G9) -> -0.2079239336 | H32: =_xlfn.T.TEST(G19:G21,G7:G9,2,2) -> 0.875127014
B33: KNOCKDOWN EFF IND (compared to dsegfp_IND): | C33: =1-AVERAGE(C16:C18)/AVERAGE(C10:C12) -> 0.6799058152 | D33: =_xlfn.T.TEST(C16:C18,C10:C12,2,2) -> 0.007283738451 | E33: =1-AVERAGE(E13:E15)/AVERAGE(E10:E12) -> 0.9759020107 | F33: =_xlfn.T.TEST(E13:E15,E10:E12,2,2) -> 0.002376878625 | G33: =1-AVERAGE(G19:G21)/AVERAGE(G10:G12) -> -0.1838268738 | H33: =_xlfn.T.TEST(G19:G21,G10:G12,2,2) -> 0.9071542353 | L33: * značilna razlika
B34: KNOCKDOWN EFF NI (compared to dsegfp_NI): | C34: =1-AVERAGE(C25:C27)/AVERAGE(C22:C24) -> -1.225746887 | D34: =_xlfn.T.TEST(C25:C27,C22:C24,2,2) -> 0.4659799664 | G34: =1-AVERAGE(G28:G30)/AVERAGE(G22:G24) -> 0.06424474659 | H34: =_xlfn.T.TEST(G28:G30,G22:G24,2,2) -> 0.9152249883
B35: KNOCKDOWN EFF IND&NI (compared to dsegfp_IND): | C35: =1-AVERAGE(C16:C18,C25:C27)/AVERAGE(C10:C12) -> 0.5709370864 | G35: =1-AVERAGE(G19:G21,G28:G30)/AVERAGE(G10:G12) -> -0.9082470041
C36: dsRNA non-specific effects?? | E36: PERFECT SILENCING | G36: STRANGE OUTLAYERS! VERY HIGH VARIABILITY IN EXPR?
G37: FOR SURE NO SILENCING NI group!!!
